bitfinex/quotes_ETHUSD_20241231
["timestamp","ask_amount","ask_price","bid_price","bid_amount"]
[1735679996227,0.15572188,3344.2,3343.6,3.0]
[1735679996425,0.7722,3344.5,3343.9,0.7617]
[1735679996837,0.7722,3344.5,3343.9,3.75221]
[1735679997043,0.7722,3344.5,3344.2,2.9902]
[1735679999246,0.7722,3344.5,3343.8,3.0]
[1735679999449,0.7722,3344.5,3343.3,0.7617]
[1735679999634,0.7722,3344.4,3343.5,2.99087]
[1735679999819,0.7722,3344.4,3343.6,2.99078]
[1735680001107,2.18693653,3344.2,3343.0,0.7901]
[1735680001314,2.18693653,3343.9,3343.1,2.99117]
[1735680001523,0.7732,3343.8,3343.1,2.99117]
[1735680002217,0.7732,3343.8,3343.2,2.99114]
[1735680002554,2.50760383,3343.7,3343.2,2.99114]
[1735680004029,1.00304153,3343.7,3343.2,2.99114]
[1735680004217,1.00304153,3343.7,3343.0,3.0]
[1735680004418,1.00304153,3343.7,3343.2,2.9911]
[1735680005256,0.7732,3343.6,3343.2,2.9911]
[1735680006852,0.7732,3343.6,3342.7,0.7901]
[1735680007056,0.7732,3343.6,3342.9,2.99132]
[1735680007358,0.7732,3343.6,3341.9,2.18693653]
[1735680007359,0.7732,3343.2,3341.9,0.7901]
[1735680007523,0.7732,3343.1,3342.2,2.99201]
[1735680007720,2.99118,3343.2,3342.2,2.99201]
[1735680007721,0.7732,3342.9,3342.2,2.99201]
[1735680008820,0.7732,3342.9,3342.8,2.9915]
[1735680009333,2.01817681,3342.9,3342.8,2.9915]
[1735680009660,1.24497681,3342.9,3342.8,2.9915]
[1735680010252,0.7732,3343.1,3342.9,2.99133]
[1735680010646,0.7732,3343.1,3343.0,2.99132]
[1735680010837,1.24497681,3343.3,3342.3,2.99195]
[1735680010838,1.24497681,3343.3,3343.2,2.99114]
[1735680011465,0.7732,3343.4,3343.0,3.0]
[1735680011760,0.7732,3343.4,3343.3,2.99105]
[1735680012132,0.7732,3343.4,3343.0,3.0]
[1735680012465,0.7732,3343.4,3343.2,2.99114]
[1735680012637,0.7732,3343.4,3342.8,0.7901]
[1735680012833,0.7732,3343.4,3343.2,2.99106]
[1735680013036,0.7732,3343.4,3343.0,3.0]
[1735680013546,0.7732,3343.4,3343.1,2.99122]
[1735680013881,0.7732,3343.4,3342.5,0.7901]
[1735680013882,0.7732,3343.4,3343.0,3.0]
[1735680014185,0.7732,3343.4,3343.2,2.99111]
[1735680014334,0.7732,3343.4,3342.9,3.0]
[1735680014678,0.7732,3343.4,3343.3,2.99105]
[1735680017906,0.7608,3343.6,3343.4,2.99096]
[1735680018101,0.7608,3343.6,3343.5,2.99087]
[1735680018466,0.7608,3343.6,3342.9,0.599168]
[1735680018664,1.40071185,3343.7,3343.6,2.99078]
[1735680019299,1.24497681,3343.7,3343.6,2.99078]
[1735680020404,1.24497681,3344.0,3343.9,2.99052]
[1735680021735,1.24497681,3344.0,3343.4,2.99095]
[1735680021910,3.75957921,3344.0,3343.7,2.99063]
[1735680022679,3.75957921,3344.0,3343.4,2.99093]
[1735680023367,0.775,3343.9,3343.4,2.99093]
[1735680023603,0.775,3343.9,3343.1,3.0]
[1735680023604,0.775,3343.9,3343.2,5.99109]
[1735680023806,0.775,3343.9,3342.9,2.99133]
[1735680024004,0.775,3343.8,3342.9,2.99133]
[1735680024590,1.24497681,3343.6,3343.0,2.99132]
[1735680025806,1.24497681,3343.3,3343.0,2.99132]
[1735680026008,0.775,3343.2,3342.6,0.374354]
[1735680026329,0.775,3343.2,3342.8,2.99146]
[1735680026915,0.775,3343.2,3342.6,2.99161]
[1735680027091,1.00584096,3343.1,3342.1,2.99207]
[1735680027270,1.00584096,3343.1,3342.5,2.99176]
[1735680027470,1.00584096,3343.1,3342.8,2.99142]
[1735680027728,1.00584096,3343.1,3342.3,3.7518]
[1735680027930,1.00584096,3343.1,3343.0,2.99132]
[1735680028506,3.75950392,3343.1,3343.0,2.99132]
[1735680029492,1.24497681,3343.4,3342.8,3.0]
[1735680029811,1.24497681,3343.4,3343.1,2.9912]
[1735680030425,1.24497681,3343.4,3343.2,2.9911]
[1735680030717,3.75950392,3343.4,3343.2,2.9911]
[1735680031945,2.51452711,3343.4,3343.2,2.9911]
[1735680032337,2.51452711,3343.4,3342.8,2.99145]
[1735680032636,2.51452711,3343.4,3343.0,2.99127]
[1735680033022,2.25081777,3343.4,3342.9,2.9914]
[1735680034213,1.24497681,3343.1,3342.9,2.9914]
[1735680036072,1.24497681,3343.1,3342.4,0.67518]
[1735680036214,1.24497681,3343.1,3343.0,2.99132]
[1735680037964,1.24497681,3343.2,3343.0,2.99132]
[1735680038285,1.24497681,3343.2,3342.4,0.67518]
[1735680038554,1.24497681,3343.2,3342.4,3.67518]
[1735680038865,0.8263,3343.1,3342.9,2.99134]
[1735680039448,2.07127681,3343.1,3342.9,2.99134]
[1735680039822,1.24497681,3343.1,3343.0,2.99132]
[1735680040221,1.24497681,3343.1,3343.0,3.79822]
[1735680040534,1.24497681,3343.1,3343.0,4.477195]
[1735680041545,1.24497681,3343.1,3343.0,7.477195]
[1735680041855,2.48678816,3343.4,3343.1,3.0]
[1735680042063,1.24497681,3343.6,3343.3,2.99105]
[1735680042364,1.24497681,3343.6,3343.0,4.477195]
[1735680042554,1.24497681,3343.6,3343.1,0.7477195]
[1735680042755,1.24497681,3343.6,3343.4,2.99095]
[1735680043059,1.24497681,3343.6,3343.1,0.7477195]
[1735680043424,1.24497681,3343.5,3343.4,2.99089]
[1735680047441,4.37932332,3343.7,3343.2,2.99111]
[1735680047442,1.24497681,3343.6,3343.2,2.99111]
[1735680047637,1.24497681,3343.6,3343.0,2.99128]
[1735680047846,0.7794,3343.5,3342.5,0.7588]
[1735680048051,0.7794,3343.5,3342.9,2.99137]
[1735680048566,0.7794,3343.5,3342.5,3.75052]
[1735680048567,1.86509112,3343.3,3343.1,2.99121]
[1735680048859,1.86509112,3343.3,3343.2,2.99114]
[1735680049941,0.36956112,3343.3,3343.2,8.17807653]
[1735680050125,1.24849441,3343.5,3343.4,7.29976]
[1735680050329,0.64860904,3343.8,3343.6,0.7588]
[1735680050537,0.64860904,3343.8,3343.7,9.48642653]
[1735680051254,0.76665425,3344.0,3343.9,0.55]
[1735680051461,4.25e-06,3344.0,3343.9,7.29932]
[1735680052036,4.25e-06,3345.3,3344.5,0.7588]
[1735680052242,4.25e-06,3345.3,3345.2,2.98935]
[1735680052739,4.25e-06,3345.3,3345.0,2.98949]
[1735680052942,4.25e-06,3345.3,3344.6,3.7486]
[1735680053138,4.25e-06,3345.3,3344.8,3.0]
[1735680053368,4.25e-06,3345.3,3345.2,5.98935]
[1735680053571,3.73018225,3345.6,3345.2,5.98935]
[1735680053882,0.7794,3345.8,3345.2,5.98935]
[1735680054389,0.15573667,3345.7,3345.2,5.98935]
[1735680054751,0.15573667,3345.7,3344.6,1.43366]
[1735680054752,0.7794,3345.6,3344.9,2.9896]
[1735680055352,0.7794,3345.6,3345.0,2.98951]
[1735680055552,0.7794,3345.6,3345.1,2.98943]
[1735680055887,0.7794,3345.6,3345.2,2.9893]
[1735680056845,0.15573667,3345.7,3345.4,2.98917]
[1735680057040,0.7794,3345.9,3345.6,2.989]
[1735680057282,0.1557195,3346.2,3345.6,2.989]
[1735680057675,0.7794,3346.5,3345.6,2.989]
[1735680057987,0.15571927,3346.2,3345.7,2.98888]
[1735680058577,0.7794,3346.1,3345.2,0.7588]
[1735680058780,0.7794,3346.1,3345.5,3.0]
[1735680059393,0.7794,3346.1,3345.2,0.7588]
[1735680059753,0.7794,3346.1,3345.0,2.98951]
[1735680060157,0.7664,3345.8,3344.6,2.98981]
[1735680060490,0.7664,3345.8,3344.3,0.7624]
[1735680060491,0.7664,3345.6,3344.3,0.7624]
[1735680060791,0.7664,3345.3,3344.3,2.99015]
[1735680061355,0.7664,3345.3,3344.6,2.98981]
[1735680062501,0.7664,3345.3,3344.3,2.9901]
[1735680063181,0.7664,3345.3,3344.1,0.7624]
[1735680063370,0.7664,3345.3,3344.6,2.98985]
[1735680064078,0.7664,3345.3,3344.1,0.7624]
[1735680064288,0.7664,3345.3,3344.3,3.0]
[1735680064480,0.7664,3344.8,3343.7,2.99066]
[1735680064807,0.7664,3344.8,3343.4,2.99089]
[1735680064808,0.7664,3344.4,3343.4,2.99089]
[1735680064953,0.7664,3344.4,3343.5,3.0]
[1735680065160,0.7664,3344.4,3343.5,3.37624]
[1735680065389,0.7664,3344.4,3343.7,2.99061]
[1735680065585,0.7664,3344.4,3344.0,2.99043]
[1735680065984,0.7664,3344.4,3343.9,0.7624]
[1735680066176,0.7664,3344.4,3343.9,2.99044]
[1735680066594,0.7664,3344.4,3343.7,3.0]
[1735680066772,0.7664,3345.2,3343.8,0.712936]
[1735680066972,0.7664,3345.2,3343.7,3.0]
[1735680067175,0.7664,3345.2,3344.4,2.99007]
[1735680067704,0.7664,3345.2,3344.5,2.98992]
[1735680070404,0.7664,3345.2,3344.6,2.98988]
[1735680071406,0.7664,3345.2,3344.5,3.0]
[1735680071803,0.7664,3345.2,3344.5,5.98996]
[1735680072866,0.7664,3345.2,3344.5,2.98996]
[1735680073069,0.7664,3345.2,3344.3,2.99014]
[1735680074532,3.42906176,3345.8,3343.9,5.93983653]
[1735680074533,0.7664,3345.0,3344.0,5.99036]
[1735680074670,0.7664,3344.8,3343.6,5.18693653]
[1735680074875,3.7562,3344.7,3343.7,2.99061]
[1735680075195,0.7664,3344.6,3343.8,3.0]
[1735680075609,0.8022,3344.3,3343.3,2.99104]
[1735680075806,0.8022,3344.3,3343.0,5.18693653]
[1735680076041,0.8022,3344.3,3343.1,0.89936365]
[1735680076350,0.8022,3344.3,3343.3,2.99097]
[1735680076686,0.8022,3344.3,3343.5,3.0]
[1735680078209,0.15581386,3344.2,3343.5,3.0]
[1735680078404,0.15581386,3344.2,3343.5,2.99086]
[1735680079533,0.15581386,3344.2,3342.7,2.99154]
[1735680079689,0.8022,3344.0,3342.8,2.99148]
[1735680079884,0.8022,3343.8,3342.4,3.00223653]
[1735680080087,2.18693653,3343.7,3342.1,2.18693653]
[1735680080287,2.99127,3343.1,3342.1,2.99208]
[1735680080486,0.8022,3343.0,3342.0,1.25055535]
[1735680080727,0.8022,3343.0,3342.2,3.8153]
[1735680080899,0.8022,3343.0,3342.2,0.8153]
[1735680081099,0.8022,3343.0,3342.3,3.41722919]
[1735680081428,0.8022,3343.0,3342.5,2.99169]
[1735680083525,0.8022,3343.0,3342.3,0.42527919]
[1735680083734,0.8022,3343.0,3342.6,2.99166]
[1735680083903,0.8022,3343.0,3342.3,0.42527919]
[1735680084228,0.8022,3343.8,3342.9,2.99134]
[1735680084590,0.8022,3343.8,3342.5,3.0]
[1735680084822,0.8022,3343.8,3343.0,2.99125]
[1735680085955,0.8022,3343.7,3342.6,2.9916]
[1735680086661,0.8022,3343.5,3342.6,2.9916]
[1735680087747,0.8022,3343.5,3342.7,2.99159]
[1735680088742,0.8022,3343.4,3342.5,2.99177]
[1735680089838,0.8022,3343.4,3342.5,3.72767118]
[1735680090445,2.99098,3343.4,3342.4,0.94196257]
[1735680090737,0.7931,3343.1,3342.2,2.99201]
[1735680090939,0.7931,3343.1,3341.9,3.8153]
[1735680091244,0.7931,3343.1,3342.5,2.99175]
[1735680092927,0.7931,3343.1,3342.1,2.99209]
[1735680093238,0.7931,3343.0,3342.1,4.19078765]
[1735680093442,0.7931,3343.0,3342.1,2.99212]
[1735680094530,3.78446,3343.0,3341.6,3.7681]
[1735680094732,0.7931,3343.0,3341.6,3.7681]
[1735680094905,0.7931,3343.0,3342.0,3.0]
[1735680095338,2.18693653,3343.4,3341.6,0.7681]
[1735680095339,0.7931,3342.8,3341.7,2.99244]
[1735680095517,0.7931,3342.6,3341.3,3.76086]
[1735680095708,0.7931,3342.5,3341.3,3.76086]
[1735680095907,0.7931,3342.5,3341.4,2.99275]
[1735680096613,0.7931,3342.5,3341.3,0.7681]
[1735680096813,0.7931,3342.5,3341.6,2.99254]
[1735680098369,0.15574171,3342.4,3341.6,2.99254]
[1735680100510,0.15574171,3342.4,3341.9,2.99229]
[1735680100706,0.7931,3342.5,3341.9,2.99229]
[1735680101023,0.94885589,3342.8,3342.4,5.17872653]
[1735680101354,0.94885589,3342.8,3342.5,3.50964265]
[1735680101654,0.15575589,3342.8,3342.5,3.50964265]
[1735680101809,0.15575589,3342.8,3342.5,0.51787265]
[1735680102011,0.15575589,3342.8,3342.4,2.18693653]
[1735680102548,0.15575589,3342.8,3342.1,2.18693653]
[1735680102748,0.15575589,3342.8,3342.2,3.0]
[1735680103149,0.15575589,3342.8,3342.4,2.99185]
[1735680103449,0.15575589,3342.8,3342.4,5.17878653]
[1735680103646,0.15575589,3342.8,3342.5,0.81787865]
[1735680105951,0.7931,3343.1,3342.6,2.99166]
[1735680106613,0.7931,3343.1,3342.7,5.18693653]
[1735680106815,0.15577211,3343.2,3342.9,3.0]
[1735680107936,0.15577211,3343.2,3342.8,2.9915]
[1735680108253,0.15578742,3343.8,3343.3,3.0]
[1735680108453,0.15578742,3343.8,3343.4,2.18693653]
[1735680109342,0.15578742,3343.8,3343.3,3.0]
[1735680109522,0.15578742,3343.8,3343.2,3.0]
[1735680109731,0.15578742,3343.8,3343.3,0.89609165]
[1735680110919,0.7945,3343.7,3343.1,2.18693653]
[1735680111120,0.7945,3343.7,3342.6,2.99159]
[1735680111321,3.7852,3343.7,3342.5,3.78751518]
[1735680111557,0.7945,3343.6,3342.5,2.18693653]
[1735680111765,0.7945,3343.5,3342.5,2.18693653]
[1735680112748,0.7945,3343.5,3342.2,2.18693653]
[1735680113060,0.7945,3343.4,3341.9,2.18693653]
[1735680113266,0.7945,3343.3,3342.0,3.0]
[1735680113423,2.99121,3343.2,3342.0,3.89619265]
[1735680113624,0.7945,3343.1,3342.2,5.17896653]
[1735680113824,0.7945,3343.1,3342.2,2.18693653]
[1735680114025,0.7945,3343.1,3342.3,2.99193]
[1735680114387,0.7945,3343.1,3342.4,0.51788665]
[1735680115048,0.7945,3343.1,3342.1,3.0]
[1735680115252,3.78574,3343.1,3342.1,3.0]
[1735680117469,0.7945,3343.1,3342.1,3.0]
[1735680118877,0.7945,3343.1,3342.1,5.99211]
[1735680119062,0.7945,3343.1,3342.3,3.0]
[1735680119239,0.7945,3343.1,3342.4,3.891045]
[1735680120165,0.7945,3343.1,3342.6,5.99168]
[1735680120478,1.24212523,3343.3,3342.6,3.0]
[1735680121062,1.24212523,3343.3,3342.8,3.0]
[1735680121568,1.24212523,3343.3,3342.6,3.0]
[1735680121772,1.24212523,3343.3,3342.7,0.68688315]
[1735680121984,0.7762,3343.4,3342.9,2.99141]
[1735680126685,0.7762,3343.4,3342.7,0.68688315]
[1735680126885,0.7762,3343.4,3342.8,2.9915]
[1735680126886,2.01832523,3343.4,3342.8,2.9915]
[1735680127656,2.01832523,3343.4,3342.9,2.9914]
[1735680127859,2.01832523,3343.4,3342.9,3.65922832]
[1735680129524,0.7762,3343.4,3342.9,3.65922832]
[1735680129914,0.7762,3343.4,3342.9,0.66782832]
[1735680130777,2.01832523,3343.4,3342.9,0.66782832]
[1735680131917,0.7762,3343.4,3342.9,0.66782832]
[1735680133731,0.7762,3343.4,3342.8,2.99146]
[1735680134890,0.7762,3343.4,3342.2,0.752]
[1735680135405,0.7762,3343.4,3342.4,2.99185]
[1735680136016,1.24212523,3343.1,3342.4,2.99185]
[1735680137529,0.798,3343.0,3342.3,3.0]
[1735680137718,0.798,3343.0,3342.0,2.99219]
[1735680137920,0.798,3343.0,3342.1,3.58521265]
[1735680138336,0.798,3343.0,3342.1,2.9921]
[1735680138881,0.798,3342.7,3342.1,2.9921]
[1735680139167,0.798,3342.7,3341.8,0.752]
[1735680139314,0.798,3342.7,3342.3,2.99192]
[1735680140757,0.798,3342.7,3342.4,2.99185]
[1735680141257,0.798,3342.7,3342.4,3.291035]
[1735680143352,1.24212523,3342.9,3342.5,2.18693653]
[1735680143654,1.24212523,3342.9,3342.8,2.9915]
[1735680144706,0.7781,3343.4,3343.0,2.99129]
[1735680145881,2.02022523,3343.4,3343.0,2.99129]
[1735680147706,2.02022523,3343.4,3342.5,2.18693653]
[1735680147907,2.02022523,3343.4,3343.0,2.99123]
[1735680149384,2.02022523,3343.4,3342.6,0.62578215]
[1735680149573,1.24212523,3343.4,3343.3,2.99105]
[1735680150489,1.62e-06,3343.6,3343.5,2.99087]
[1735680150648,1.62e-06,3343.6,3343.5,10.00164853]
[1735680150973,6.81e-06,3343.7,3343.6,6.78228]
[1735680151158,6.81e-06,3344.2,3344.1,5.99034]
[1735680151363,6.81e-06,3344.2,3344.1,8.96877653]
[1735680152382,6.81e-06,3344.2,3344.1,9.51877653]
[1735680152583,6.81e-06,3344.2,3344.1,10.76971418]
[1735680152919,0.7968,3345.1,3344.1,10.76971418]
[1735680152920,0.7968,3345.9,3344.2,0.7915]
[1735680153105,0.7968,3345.9,3345.0,2.98951]
[1735680153296,0.15577734,3345.8,3345.0,2.98951]
[1735680153498,0.7968,3345.7,3345.0,2.98951]
[1735680154087,0.7968,3345.7,3345.2,2.9893]
[1735680154420,0.7968,3345.7,3345.5,2.98901]
[1735680154831,0.15577734,3345.8,3345.6,2.98899]
[1735680155440,0.7968,3346.4,3345.6,2.97843653]
[1735680155650,0.7968,3346.4,3345.9,2.98869]
[1735680155943,0.15575078,3346.3,3345.9,2.98869]
[1735680156908,0.15575078,3346.3,3345.7,2.98887]
[1735680157289,0.15575078,3346.3,3345.6,0.7915]
[1735680157484,0.15575078,3346.3,3345.8,2.9888]
[1735680161624,0.15575078,3346.3,3345.9,2.98872]
[1735680164123,0.15575078,3346.3,3346.0,2.98859]
[1735680164735,0.15575078,3346.3,3346.1,2.98853]
[1735680164936,0.15575078,3346.3,3346.2,2.98846]
[1735680168259,0.7825,3346.8,3346.1,0.767]
[1735680168468,0.7825,3346.8,3346.7,2.98801]
[1735680170428,0.15568834,3347.0,3346.8,2.98791]
[1735680170882,0.15568834,3347.0,3346.0,2.98858]
[1735680170883,0.15568834,3347.0,3346.9,2.98783]
[1735680171051,0.7825,3347.4,3346.9,2.98783]
[1735680171052,0.7825,3347.4,3347.2,2.98754]
[1735680172554,0.7825,3347.4,3346.9,2.98783]
[1735680172754,0.15569579,3347.6,3346.9,2.98783]
[1735680172949,0.15569579,3347.6,3347.2,2.98748]
[1735680173148,0.15569579,3347.6,3346.9,2.98783]
[1735680173478,0.15569579,3347.6,3347.3,2.98745]
[1735680174551,0.15569579,3347.6,3347.5,2.9873]
[1735680174766,0.7825,3347.7,3347.5,2.9873]
[1735680175095,0.15569472,3347.9,3347.8,2.98703]
[1735680175294,0.7825,3349.2,3348.1,2.98676]
[1735680175480,0.15566682,3348.6,3348.1,2.98676]
[1735680175665,0.7825,3348.8,3348.2,3.7536]
[1735680175867,0.93815993,3348.8,3348.2,3.7536]
[1735680176060,0.93815993,3348.8,3348.2,2.9866]
[1735680176254,0.93815993,3348.8,3348.3,2.98651]
[1735680176477,0.93815993,3348.8,3348.2,2.98665]
[1735680176755,0.93815993,3348.8,3348.3,2.98658]
[1735680178295,0.93815993,3348.8,3348.4,2.98649]
[1735680178488,0.93815993,3348.8,3348.5,2.98633]
[1735680178697,0.15565993,3348.8,3348.7,2.98623]
[1735680178859,0.7825,3350.2,3348.7,5.18693653]
[1735680179062,0.7825,3350.2,3349.4,2.98555]
[1735680179360,0.7825,3350.2,3349.4,2.98558]
[1735680180293,0.7825,3350.2,3348.9,2.18693653]
[1735680180496,0.7825,3350.2,3347.6,2.98715]
[1735680180497,3.8128,3349.9,3348.5,2.98638]
[1735680180819,0.42169475,3350.2,3348.0,0.7803]
[1735680180820,0.8128,3349.3,3348.0,0.7803]
[1735680181015,0.8128,3349.3,3348.4,2.98649]
[1735680181576,0.8128,3349.3,3348.2,2.98666]
[1735680181963,0.8128,3349.3,3347.9,2.18693653]
[1735680182202,3.79857,3349.3,3348.1,2.98676]
[1735680182400,3.79857,3349.3,3347.7,5.98708]
[1735680182401,0.8128,3349.0,3348.0,2.98684]
[1735680183296,0.8128,3349.0,3348.1,2.98671]
[1735680183698,3.79878,3349.0,3347.6,2.96723653]
[1735680183899,3.79878,3349.0,3347.9,2.98686]
[1735680184234,3.79885,3348.9,3347.6,2.96723653]
[1735680184431,0.15565594,3349.2,3347.0,2.18693653]
[1735680184432,0.8128,3348.2,3347.0,2.18693653]
[1735680184736,0.8128,3348.2,3347.3,2.98747]
[1735680184898,0.8128,3348.2,3347.2,2.98756]
[1735680184899,3.8128,3348.2,3347.2,2.98756]
[1735680185098,3.8128,3348.2,3346.7,2.18693653]
[1735680185099,0.8128,3348.2,3347.3,2.98746]
[1735680185324,0.8128,3348.2,3347.3,0.298746]
[1735680185522,0.8128,3348.2,3347.8,2.98702]
[1735680186112,0.8128,3348.2,3347.5,2.98722]
[1735680186313,0.8128,3348.2,3346.9,2.98783]
[1735680186314,0.8128,3348.2,3346.7,2.18693653]
[1735680186518,0.8128,3348.2,3347.2,2.98756]
[1735680187040,0.8128,3348.2,3347.6,2.98719]
[1735680187735,0.8128,3348.2,3347.4,2.98736]
[1735680187901,0.8128,3348.2,3347.5,2.9873]
[1735680188301,0.8128,3348.2,3347.7,2.98712]
[1735680189895,0.8128,3348.2,3347.5,2.98728]
[1735680190514,0.8128,3348.2,3346.7,2.18693653]
[1735680190708,0.8128,3348.2,3346.8,0.59672365]
[1735680190939,0.8128,3348.2,3347.1,2.98764]
[1735680191142,0.8128,3347.7,3346.5,3.0]
[1735680191444,0.8128,3347.7,3346.9,2.9878]
[1735680193406,0.8128,3347.7,3347.0,2.98773]
[1735680194143,0.8128,3347.7,3346.2,2.98841]
[1735680194437,0.8128,3347.6,3346.5,2.98812]
[1735680194840,0.8128,3347.5,3346.5,2.98812]
[1735680195048,2.98724,3347.6,3346.3,0.59556465]
[1735680195049,0.8128,3347.3,3346.3,2.98832]
[1735680195202,0.8128,3347.3,3345.9,1.196826]
[1735680195400,0.8128,3347.3,3346.6,2.98808]
[1735680195940,0.8128,3347.3,3345.8,7.185742]
[1735680196141,0.8128,3347.3,3346.5,2.98812]
[1735680196342,0.8128,3347.3,3346.6,2.98809]
[1735680196677,0.7714,3347.1,3346.1,2.98849]
[1735680197009,0.7714,3347.0,3345.9,2.98868]
[1735680197312,0.7714,3346.9,3345.9,2.98868]
[1735680197646,0.7714,3346.9,3346.0,2.98862]
[1735680197810,0.7714,3346.9,3346.1,2.98854]
[1735680200038,0.7714,3346.9,3346.2,2.98843]
[1735680203065,0.15577023,3346.8,3346.2,2.98843]
[1735680204179,0.15577023,3346.8,3346.2,0.298843]
[1735680204364,0.15577023,3346.8,3346.4,2.98826]
[1735680205246,0.15577023,3346.8,3346.2,2.98839]
[1735680206583,0.15577023,3346.8,3346.0,2.98861]
[1735680207113,0.7714,3346.7,3346.0,2.98861]
[1735680207964,0.7714,3346.7,3345.7,3.21869365]
[1735680208157,0.7714,3346.7,3346.2,2.98845]
[1735680209055,0.7714,3346.7,3346.3,2.98837]
[1735680209456,0.7714,3346.7,3346.0,2.98855]
[1735680210281,0.7714,3346.7,3346.1,2.98854]
[1735680210978,0.7714,3346.7,3345.5,2.98903]
[1735680211181,0.8123,3346.4,3345.1,3.81151]
[1735680211382,0.8123,3346.3,3345.4,2.98914]
[1735680212079,0.8123,3346.3,3344.7,3.81183]
[1735680212282,0.8123,3346.0,3345.0,2.9895]
[1735680212449,0.8123,3346.0,3344.8,3.0]
[1735680212782,0.8123,3346.0,3344.7,3.81183]
[1735680212783,0.8123,3345.8,3344.9,2.98955]
[1735680212956,0.8123,3345.8,3344.9,0.298955]
[1735680213160,0.8123,3345.8,3345.1,2.98937]
[1735680214774,0.8123,3345.8,3344.4,3.8221]
[1735680214775,0.8123,3345.8,3345.5,2.98906]
[1735680218087,0.8123,3345.8,3345.3,2.98922]
[1735680218385,0.8123,3345.8,3345.3,2.98924]
[1735680221088,0.8123,3345.8,3344.6,3.0]
[1735680221295,0.8123,3345.8,3344.7,0.60090365]
[1735680221296,0.8123,3345.7,3344.7,0.60090365]
[1735680221506,0.8123,3345.6,3345.0,2.98953]
[1735680222695,0.8123,3345.6,3344.5,2.98998]
[1735680222890,0.8123,3345.6,3344.9,2.98962]
[1735680223256,0.15577714,3345.5,3345.1,2.98941]
[1735680223471,0.15577714,3345.5,3345.4,2.98917]
[1735680223803,0.15577714,3345.5,3345.2,2.98927]
[1735680224167,0.15577714,3345.5,3344.9,2.9896]
[1735680224367,0.15577714,3345.5,3345.2,2.98933]
[1735680226413,0.15577714,3345.5,3344.8,2.9897]
[1735680226573,0.15577714,3345.5,3344.5,2.98998]
[1735680226771,0.15577714,3345.5,3344.4,0.8221]
[1735680226772,0.15577714,3345.5,3344.8,2.98969]
[1735680227185,0.15577714,3345.5,3344.6,0.381208]
[1735680227419,0.15577714,3345.5,3344.9,2.98961]
[1735680227592,0.15577714,3345.5,3344.6,0.381208]
[1735680227795,0.15577714,3345.5,3345.1,2.98943]
[1735680228399,0.15577714,3345.5,3345.4,2.98917]
[1735680228629,0.7636,3345.9,3345.6,2.98897]
[1735680228826,0.91936787,3345.9,3345.6,2.98897]
[1735680229410,0.91936787,3345.9,3345.2,0.8187]
[1735680229718,0.91936787,3345.9,3345.2,2.98931]
[1735680230086,0.91936787,3345.9,3345.0,2.98951]
[1735680230318,0.91936787,3345.9,3344.5,5.99553653]
[1735680230519,0.91936787,3345.9,3344.7,0.93767445]
[1735680230931,0.7636,3345.8,3344.9,2.98956]
[1735680232425,0.7636,3345.8,3344.8,3.0]
[1735680232604,0.7636,3345.7,3344.7,2.98976]
[1735680232802,0.7636,3345.4,3344.4,2.99002]
[1735680233025,0.7636,3345.4,3344.0,2.99043]
[1735680233332,0.7636,3345.4,3344.1,0.380913]
[1735680233529,0.7636,3345.4,3344.1,3.380913]
[1735680234593,0.7636,3345.4,3344.4,2.99004]
[1735680236340,0.7636,3345.4,3344.1,0.380913]
[1735680236748,0.7636,3345.4,3344.9,2.9896]
[1735680237073,0.7636,3345.4,3345.0,2.98946]
[1735680240856,0.7636,3345.4,3344.3,0.8187]
[1735680241069,0.7636,3345.4,3344.8,2.98966]
[1735680241264,0.7636,3345.4,3344.9,2.98955]
[1735680241439,0.7636,3345.4,3345.0,2.98952]
[1735680243468,0.7636,3345.4,3344.6,2.98989]
[1735680243625,0.8108,3345.8,3345.4,2.98916]
[1735680243826,0.8108,3345.8,3345.5,2.98908]
[1735680244037,0.8108,3345.8,3345.4,2.98917]
[1735680245247,0.8108,3345.8,3344.7,0.3628545]
[1735680245451,0.8108,3345.8,3344.7,3.3526245]
[1735680245660,0.8108,3345.8,3345.4,2.98917]
[1735680249658,0.8108,3345.8,3344.8,0.70941145]
[1735680249841,0.8108,3345.8,3345.1,2.98937]
[1735680250046,0.8108,3345.8,3345.2,2.98934]
[1735680251671,0.8108,3345.8,3345.3,2.98923]
[1735680251844,0.15576787,3345.9,3345.4,2.18693653]
[1735680252037,1.86554602,3346.0,3345.5,2.98908]
[1735680252237,1.86554602,3346.0,3345.7,2.98886]
[1735680252640,1.86554602,3346.0,3345.8,2.98878]
[1735680253170,0.15577753,3346.1,3345.8,2.98878]
[1735680254583,0.15577753,3346.1,3345.9,2.98872]
[1735680255337,0.15577753,3346.1,3345.7,2.98887]
[1735680255552,0.15577753,3346.1,3345.8,2.98878]
[1735680256347,0.15577753,3346.1,3345.2,3.74094]
[1735680256664,0.8234,3346.0,3345.5,2.98906]
[1735680257585,0.8234,3346.0,3345.3,3.59278765]
[1735680257786,0.8234,3346.0,3345.5,2.98905]
[1735680259460,0.8234,3346.0,3345.3,2.9892]
[1735680261171,2.68894602,3346.0,3345.3,2.9892]
[1735680262997,2.68894602,3346.0,3345.4,2.98916]
[1735680263705,2.68894602,3346.0,3345.2,2.98933]
[1735680263876,0.8234,3345.9,3345.0,2.98952]
[1735680264082,0.8234,3345.8,3344.6,2.03855535]
[1735680264277,0.8234,3345.8,3344.9,2.98961]
[1735680264485,0.8234,3345.8,3345.1,2.98941]
[1735680264977,1.86554602,3346.0,3345.0,0.788]
[1735680265165,1.86554602,3346.0,3345.7,2.98884]
[1735680265371,2.48379323,3345.8,3345.7,2.98884]
[1735680266311,0.15577753,3346.1,3345.7,2.98884]